bitfinex-derivatives/quotes_BTCF0:USTF0_20240824
["timestamp","ask_amount","ask_price","bid_price","bid_amount"]
[1724530003360,0.194775,64259.0,64253.0,0.06225318]
[1724530003361,0.077777,64257.0,64256.0,0.04665452]
[1724530003564,0.077777,64257.0,64251.0,0.04665156]
[1724530003565,0.077783,64252.0,64251.0,0.04665156]
[1724530003765,0.00777477,64252.0,64250.0,0.00023338]
[1724530004066,0.54850352,64251.0,64250.0,0.00023338]
[1724530004459,0.47084,64251.0,64250.0,0.00023338]
[1724530004861,0.548624,64251.0,64250.0,0.00023338]
[1724530006462,0.548624,64251.0,64250.0,0.00323338]
[1724530007063,0.548624,64251.0,64250.0,0.00623338]
[1724530009062,0.187824,64251.0,64250.0,0.00623338]
[1724530009262,0.548624,64251.0,64250.0,0.00623338]
[1724530013468,0.61066173,64251.0,64250.0,0.00623338]
[1724530014060,0.42287773,64251.0,64250.0,0.00623338]
[1724530014270,0.47084,64251.0,64250.0,0.00623338]
[1724530016476,0.11004,64251.0,64250.0,0.00623338]
[1724530018170,0.187824,64251.0,64250.0,0.00623338]
[1724530018570,4e-05,64251.0,64250.0,0.00623338]
[1724530018875,0.11004,64251.0,64250.0,0.08401938]
[1724530022174,0.187824,64251.0,64250.0,0.00623338]
[1724530024474,0.187824,64251.0,64250.0,0.0528177]
[1724530024975,0.187824,64251.0,64250.0,0.00623338]
[1724530026469,0.249913,64251.0,64250.0,0.00623338]
[1724530027063,0.187824,64251.0,64250.0,0.00623338]
[1724530032069,0.187824,64251.0,64250.0,0.0528762]
[1724530034876,0.187824,64251.0,64250.0,0.0531062]
[1724530039481,0.187824,64251.0,64250.0,0.0511062]
[1724530040072,0.187824,64251.0,64250.0,0.00246338]
[1724530040783,0.06218708,64251.0,64250.0,0.50314973]
[1724530040984,0.06215087,64257.0,64250.0,1.39521357]
[1724530041188,0.06215087,64258.0,64257.0,0.077777]
[1724530041384,0.3608,64261.0,64257.0,0.077777]
[1724530041385,0.06215087,64260.0,64258.0,0.077776]
[1724530041590,0.06295087,64261.0,64260.0,0.077773]
[1724530041784,0.06295087,64261.0,64260.0,0.187773]
[1724530041988,0.0008,64261.0,64260.0,0.29746023]
[1724530042183,0.06238425,64263.0,64260.0,0.29746023]
[1724530042391,0.06238425,64263.0,64261.0,0.06218723]
[1724530043094,0.06238425,64263.0,64262.0,4e-05]
[1724530044178,0.00023338,64263.0,64262.0,4e-05]
[1724530044890,0.00923338,64263.0,64262.0,4e-05]
[1724530045086,0.01723338,64263.0,64262.0,4e-05]
[1724530045493,0.00823338,64263.0,64262.0,0.04664518]
[1724530045792,0.01823338,64263.0,64262.0,0.04864518]
[1724530045984,0.01823338,64263.0,64262.0,0.40944518]
[1724530046188,0.01823338,64263.0,64262.0,0.04864518]
[1724530046387,0.01823338,64263.0,64262.0,0.36284]
[1724530046784,0.01823338,64263.0,64262.0,0.00204]
[1724530046991,0.01823338,64263.0,64262.0,0.36284]
[1724530048692,0.01823338,64263.0,64262.0,0.00204]
[1724530048999,0.09600338,64263.0,64262.0,0.00204]
[1724530049198,0.01823338,64263.0,64262.0,0.00204]
[1724530049496,0.12823338,64263.0,64262.0,0.04864518]
[1724530049691,0.12823338,64263.0,64262.0,0.00204]
[1724530050907,0.20600338,64263.0,64262.0,0.00204]
[1724530054909,0.26815425,64263.0,64262.0,0.00204]
[1724530057008,0.20600338,64263.0,64262.0,0.00204]
[1724530057210,0.26815425,64263.0,64262.0,0.00204]
[1724530058100,0.20600338,64263.0,64262.0,0.00204]
[1724530068501,0.56680338,64263.0,64262.0,0.00204]
[1724530069415,0.64435963,64263.0,64262.0,0.00204]
[1724530070113,0.53435963,64263.0,64262.0,0.00204]
[1724530070315,0.56680338,64263.0,64262.0,0.00204]
[1724530072815,0.64439759,64263.0,64262.0,0.00204]
[1724530075115,0.56680338,64263.0,64262.0,0.00204]
[1724530075315,0.64439759,64263.0,64262.0,0.00204]
[1724530075514,0.56680338,64263.0,64262.0,0.00227]
[1724530079332,0.37903338,64263.0,64262.0,0.01313]
[1724530079623,0.48903338,64263.0,64262.0,0.01313]
[1724530082124,0.12823338,64263.0,64262.0,0.01313]
[1724530082315,0.48903338,64263.0,64262.0,0.01313]
[1724530082520,0.48903338,64263.0,64262.0,0.05973518]
[1724530083424,0.56680338,64263.0,64262.0,0.05973518]
[1724530084624,0.56680338,64263.0,64262.0,0.01313]
[1724530085127,0.56680338,64263.0,64262.0,0.05973518]
[1724530087031,0.20600338,64263.0,64262.0,0.05973518]
[1724530087333,0.56680338,64263.0,64262.0,0.05973518]
[1724530089122,0.56680338,64263.0,64262.0,0.01313]
[1724530092032,0.64444819,64263.0,64262.0,0.05973518]
[1724530093628,0.20600338,64263.0,64262.0,0.01313]
[1724530098637,0.28364819,64263.0,64262.0,0.01313]
[1724530099136,0.20600338,64263.0,64262.0,0.01313]
[1724530099336,0.28364819,64263.0,64262.0,0.01313]
[1724530102242,0.28364819,64263.0,64262.0,0.0129]
[1724530103938,0.20600338,64263.0,64262.0,0.0129]
[1724530105341,0.56680338,64263.0,64262.0,0.0129]
[1724530112549,0.20600338,64263.0,64262.0,0.0129]
[1724530112751,0.56680338,64263.0,64262.0,0.0129]
[1724530113649,0.20600338,64263.0,64262.0,0.0129]
[1724530113850,0.56680338,64263.0,64262.0,0.0129]
[1724530116247,0.64445572,64263.0,64262.0,0.0129]
[1724530116437,0.64445572,64263.0,64262.0,0.01313]
[1724530116837,0.64445507,64263.0,64262.0,0.01313]
[1724530117041,0.56680338,64263.0,64262.0,0.01313]
[1724530117241,0.64445532,64263.0,64262.0,0.01313]
[1724530117451,0.56680338,64263.0,64262.0,0.01313]
[1724530117847,0.20600338,64263.0,64262.0,0.01313]
[1724530118051,0.56680338,64263.0,64262.0,0.01313]
[1724530119145,0.20600338,64263.0,64262.0,0.01313]
[1724530119347,0.56680338,64263.0,64262.0,0.01313]
[1724530122049,0.56680338,64263.0,64262.0,0.00613]
[1724530122050,0.73774715,64263.0,64262.0,0.00613]
[1724530122249,0.64457338,64263.0,64262.0,0.00613]
[1724530122453,0.65246275,64263.0,64262.0,0.00613]
[1724530123058,0.68250827,64263.0,64262.0,0.00613]
[1724530123660,0.72980827,64263.0,64262.0,0.00613]
[1724530126058,0.79285568,64263.0,64262.0,0.00613]
[1724530126254,0.69976275,64263.0,64262.0,0.00613]
[1724530139062,1.06056275,64263.0,64262.0,0.00613]
[1724530141464,0.33896275,64263.0,64262.0,0.00613]
[1724530141672,1.06056275,64263.0,64262.0,0.00613]
[1724530142967,0.33896275,64263.0,64262.0,0.0059]
[1724530143168,1.06056275,64263.0,64262.0,0.0059]
[1724530145471,1.09061019,64263.0,64262.0,0.0059]
[1724530146068,0.33896275,64263.0,64262.0,0.0059]
[1724530146371,1.06056275,64263.0,64262.0,0.0059]
[1724530146565,0.33896275,64263.0,64262.0,0.0059]
[1724530146766,1.06056275,64263.0,64262.0,0.0059]
[1724530147463,1.09061018,64263.0,64262.0,0.0059]
[1724530147876,0.07778,64255.0,64254.0,0.0461]
[1724530148069,0.54858,64255.0,64254.0,0.0461]
[1724530148872,0.54862,64255.0,64254.0,0.0461]
[1724530149275,0.55062,64255.0,64254.0,0.0461]
[1724530149473,0.6291625,64255.0,64254.0,0.0461]
[1724530150480,0.55162,64255.0,64254.0,0.0461]
[1724530152197,0.62924065,64255.0,64254.0,0.0461]
[1724530153387,0.55162,64255.0,64254.0,0.0461]
[1724530153593,0.57898775,64255.0,64254.0,0.0461]
[1724530155891,0.57898775,64255.0,64254.0,0.09278331]
[1724530156293,0.57898775,64255.0,64254.0,0.09278327]
[1724530156494,0.57898775,64255.0,64254.0,0.09278313]
[1724530157289,0.57898775,64255.0,64254.0,0.0461]
[1724530157290,0.60880439,64255.0,64254.0,0.0461]
[1724530158690,0.60880428,64255.0,64254.0,0.0461]
[1724530158999,0.57875775,64255.0,64254.0,0.0461]
[1724530165902,0.57875775,64255.0,64254.0,0.09278758]
[1724530166699,0.57875775,64255.0,64254.0,0.0461]
[1724530167005,0.65639096,64255.0,64254.0,0.0461]
[1724530170707,0.29559096,64255.0,64254.0,0.0461]
[1724530172607,0.21795775,64255.0,64254.0,0.10828723]
[1724530173205,0.24317771,64255.0,64254.0,0.0461]
[1724530173408,0.21795775,64255.0,64254.0,0.0461]
[1724530173598,0.24317762,64255.0,64254.0,0.0461]
[1724530175912,0.077782,64253.0,64251.0,0.06218723]
[1724530176211,0.11,64252.0,64251.0,0.06218723]
[1724530176611,0.187783,64252.0,64251.0,0.06218723]
[1724530176805,0.187823,64252.0,64251.0,0.06218723]
[1724530177303,0.187823,64252.0,64251.0,0.06418723]
[1724530177504,0.187823,64252.0,64251.0,0.002]
[1724530177807,0.187823,64252.0,64251.0,0.06418723]
[1724530178005,0.26545631,64252.0,64251.0,0.004]
[1724530178202,0.187823,64252.0,64251.0,0.004]
[1724530178409,0.26545631,64252.0,64251.0,0.004]
[1724530182609,0.21304328,64252.0,64251.0,0.004]
[1724530183505,0.187823,64252.0,64251.0,0.004]
[1724530187310,0.21304345,64252.0,64251.0,0.004]
[1724530187705,0.21304345,64252.0,64251.0,0.05068444]
[1724530188312,0.21304345,64252.0,64251.0,0.004]
[1724530190018,0.28829178,64252.0,64251.0,0.004]
[1724530191815,0.64909178,64252.0,64251.0,0.004]
[1724530192316,0.61904345,64252.0,64251.0,0.004]
[1724530192719,0.69682645,64252.0,64251.0,0.004]
[1724530193108,0.671606,64252.0,64251.0,0.004]
[1724530193314,0.69682859,64252.0,64251.0,0.004]
[1724530193510,0.78997262,64252.0,64251.0,0.004]
[1724530194118,0.69682859,64252.0,64251.0,0.004]
[1724530194313,0.7899728,64252.0,64251.0,0.004]
[1724530197217,1.1507728,64252.0,64251.0,0.004]
[1724530197828,1.05762859,64252.0,64251.0,0.00423]
[1724530199634,1.01242859,64252.0,64251.0,0.00423]
[1724530201922,0.93464559,64252.0,64251.0,0.00423]
[1724530204424,0.93464468,64252.0,64251.0,0.00423]
[1724530206240,0.21304468,64252.0,64251.0,0.00423]
[1724530206534,0.57384468,64252.0,64251.0,0.00423]
[1724530208423,0.21304468,64252.0,64251.0,0.00423]
[1724530208623,0.57384468,64252.0,64251.0,0.00423]
[1724530209228,0.57384478,64252.0,64251.0,0.00423]
[1724530213833,0.21304478,64252.0,64251.0,0.00423]
[1724530214140,0.57384478,64252.0,64251.0,0.00423]
[1724530214337,0.21304478,64252.0,64251.0,0.00423]
[1724530214534,0.57384478,64252.0,64251.0,0.00423]
[1724530214933,0.21304478,64252.0,64251.0,0.00423]
[1724530215133,0.57384478,64252.0,64251.0,0.00423]
[1724530219244,0.57384471,64252.0,64251.0,0.00423]
[1724530222736,0.66698892,64252.0,64251.0,0.00423]
[1724530222939,0.57384471,64252.0,64251.0,0.00423]
[1724530223737,0.21304471,64252.0,64251.0,0.00423]
[1724530223938,0.57384471,64252.0,64251.0,0.004]
[1724530224339,0.66798892,64252.0,64251.0,0.002]
[1724530225346,0.66798892,64252.0,64250.0,0.00023338]
[1724530225347,0.077784,64251.0,64250.0,0.00023338]
[1724530225542,0.10300571,64251.0,64250.0,0.00023338]
[1724530226049,0.10304571,64251.0,64250.0,0.00023338]
[1724530226545,0.10304571,64251.0,64250.0,0.00123338]
[1724530227146,0.10304571,64251.0,64250.0,0.00223338]
[1724530228150,0.55698992,64251.0,64250.0,0.00223338]
[1724530230056,0.19618992,64251.0,64250.0,0.00223338]
[1724530230249,0.55698992,64251.0,64250.0,0.00223338]
[1724530230845,0.46384571,64251.0,64250.0,0.00223338]
[1724530232052,0.46384545,64251.0,64250.0,0.00223338]
[1724530232449,0.46384545,64251.0,64250.0,0.04891782]
[1724530232842,0.10304545,64251.0,64250.0,0.04891782]
[1724530233347,0.46384545,64251.0,64250.0,0.04891782]
[1724530233743,0.10304545,64251.0,64250.0,0.04891782]
[1724530234250,0.46384545,64251.0,64250.0,0.04891782]
[1724530234449,0.10304545,64251.0,64250.0,0.04891782]
[1724530234654,0.46384545,64251.0,64250.0,0.04891782]
[1724530235051,0.46384545,64251.0,64250.0,0.00223338]
[1724530236749,0.57384545,64251.0,64250.0,0.00223338]
[1724530237250,0.21304545,64251.0,64250.0,0.00223338]
[1724530237461,0.22840566,64251.0,64250.0,0.00223338]
[1724530237651,0.13526145,64251.0,64250.0,0.04892643]
[1724530238247,0.13526145,64251.0,64250.0,0.00223338]
[1724530238449,0.13826145,64251.0,64250.0,0.04691833]
[1724530238657,0.19269432,64251.0,64250.0,0.07824938]
[1724530238862,0.02937797,64258.0,64250.0,1.33818338]
[1724530239154,0.10857876,64266.0,64257.0,0.17223897]
[1724530239155,0.07766496,64259.0,64257.0,0.17223897]
[1724530239360,0.4708,64261.0,64258.0,0.14083467]
[1724530239361,0.36943483,64261.0,64258.0,0.14083467]
[1724530239662,0.36851483,64261.0,64260.0,0.04663467]
[1724530240056,0.36851483,64261.0,64260.0,0.12444867]
[1724530240258,0.43056008,64261.0,64260.0,0.077814]
[1724530240461,0.54056008,64261.0,64260.0,0.077814]
[1724530241055,0.54056008,64261.0,64260.0,0.10213299]
[1724530241056,0.53284525,64261.0,64260.0,0.10213299]
[1724530241358,0.4808,64261.0,64260.0,0.078814]
[1724530241659,0.4808,64261.0,64260.0,0.10313299]
[1724530241660,0.51394756,64261.0,64260.0,0.10313299]
[1724530241855,0.51394756,64261.0,64260.0,0.10413299]
[1724530241856,0.52094756,64261.0,64260.0,0.10413299]
[1724530243451,0.51301636,64261.0,64260.0,0.10413299]
[1724530243651,0.52091808,64261.0,64260.0,0.10413299]
[1724530244553,0.38570172,64261.0,64260.0,0.13188442]
[1724530244752,0.49570172,64261.0,64260.0,0.13188442]
[1724530246266,0.54217467,64261.0,64260.0,0.10756543]
[1724530247459,0.49570172,64261.0,64260.0,0.10756543]
[1724530247664,0.13490172,64261.0,64260.0,0.10756543]
[1724530248064,0.06347295,64261.0,64260.0,0.10756543]
[1724530248363,0.127,64261.0,64260.0,0.50756543]
[1724530248571,0.127,64261.0,64260.0,0.97440543]
[1724530248762,0.017,64261.0,64260.0,1.08440543]
[1724530249158,0.017,64261.0,64260.0,1.1310401]
[1724530249359,0.017,64261.0,64260.0,1.08440543]
[1724530249865,0.017,64261.0,64260.0,1.44520543]
[1724530252067,0.127,64261.0,64260.0,1.33520543]
[1724530253669,0.127,64261.0,64260.0,0.97440543]
[1724530253863,0.127,64261.0,64260.0,1.33520543]
[1724530254971,0.127,64261.0,64260.0,0.97440543]
[1724530255272,0.127,64261.0,64260.0,1.33520543]
[1724530255475,0.127,64261.0,64260.0,1.44876543]
[1724530256966,0.00147764,64261.0,64260.0,1.55876543]
[1724530257774,0.00023338,64263.0,64262.0,0.077771]
[1724530258081,0.00023338,64263.0,64262.0,0.544611]
[1724530258269,0.00023338,64263.0,64262.0,0.944611]
[1724530258676,0.00023338,64263.0,64262.0,0.944651]
[1724530259579,0.00723338,64263.0,64262.0,0.945651]
[1724530259766,0.00723338,64263.0,64262.0,0.946651]
[1724530259767,0.01623338,64263.0,64262.0,0.946651]
[1724530259965,0.01623338,64263.0,64262.0,0.99314144]
[1724530260383,0.01623338,64263.0,64262.0,0.946651]
[1724530260584,0.01623338,64263.0,64262.0,0.99314579]
[1724530261273,0.01623338,64263.0,64262.0,1.10670579]
[1724530261472,0.01623338,64263.0,64262.0,1.060211]
[1724530261771,0.01623338,64263.0,64262.0,0.660211]
[1724530262376,0.01623338,64263.0,64262.0,0.70670579]
[1724530262679,0.1500237,64263.0,64262.0,0.660211]
[1724530263071,0.18006045,64263.0,64262.0,0.660211]
[1724530263271,0.07148169,64263.0,64262.0,0.660211]
[1724530263882,0.07148169,64263.0,64262.0,1.021011]
[1724530264983,0.07148169,64263.0,64262.0,0.660211]
[1724530265187,0.07148169,64263.0,64262.0,1.021011]
[1724530265781,0.07148169,64263.0,64262.0,0.72244997]
[1724530265782,0.01623338,64263.0,64262.0,0.72244997]
[1724530265983,0.01623338,64263.0,64262.0,1.08324997]
[1724530266280,0.01623338,64263.0,64262.0,1.021011]
[1724530266585,0.01623338,64263.0,64262.0,0.554171]
[1724530267786,0.01623338,64263.0,64262.0,0.440611]
[1724530268085,0.01623338,64263.0,64262.0,0.554171]
[1724530268875,0.01623338,64263.0,64262.0,0.193371]
[1724530269078,0.01623338,64263.0,64262.0,0.554171]
[1724530271077,0.01623338,64263.0,64262.0,0.440611]
[1724530271277,0.01623338,64263.0,64262.0,0.554171]
[1724530275683,0.01623338,64263.0,64262.0,0.6319363]
[1724530276285,0.01623338,64263.0,64262.0,0.75043495]
[1724530277188,0.01623338,64263.0,64262.0,0.75066495]
[1724530277497,0.01623338,64263.0,64262.0,0.69721401]
[1724530278498,0.01623338,64263.0,64262.0,0.67289965]
[1724530280589,0.01623338,64263.0,64262.0,0.69721375]
[1724530281189,0.01623338,64263.0,64262.0,0.5787151]
[1724530281388,0.01623338,64263.0,64262.0,0.69721137]
[1724530283797,0.01623338,64263.0,64262.0,0.33641137]
[1724530284194,0.01623338,64263.0,64262.0,0.69721137]
[1724530287900,0.01623338,64263.0,64262.0,0.33641137]
[1724530288198,0.01623338,64263.0,64262.0,0.69721137]
[1724530289504,0.01623338,64263.0,64262.0,0.71666252]
[1724530290297,0.06270909,64263.0,64262.0,0.69721137]
[1724530290497,0.06270909,64263.0,64262.0,0.71666252]
[1724530291191,0.06270909,64263.0,64262.0,0.35586252]
[1724530291397,0.06270909,64263.0,64262.0,0.71666252]
[1724530291800,0.06270909,64263.0,64262.0,0.35586252]
[1724530292002,0.06270909,64263.0,64262.0,0.71666252]
[1724530293005,0.06270909,64263.0,64262.0,0.71662252]
[1724530294013,0.06270909,64263.0,64262.0,0.35582252]
[1724530294206,0.06270909,64263.0,64262.0,0.69717137]
[1724530294396,0.06270909,64263.0,64262.0,0.71662252]
[1724530295106,0.06270909,64263.0,64262.0,0.35582252]
[1724530295307,0.06270909,64263.0,64262.0,0.71662252]
[1724530296098,0.06270909,64263.0,64262.0,0.7166225]
[1724530296804,0.07148072,64263.0,64262.0,0.59812609]
[1724530297003,0.07148072,64263.0,64262.0,0.21787494]
[1724530297208,0.07148072,64263.0,64262.0,0.59812609]
[1724530298013,0.07148072,64263.0,64262.0,0.23732609]
[1724530298207,0.07148072,64263.0,64262.0,0.59812609]
[1724530299105,0.07148072,64263.0,64262.0,0.23732609]
[1724530299311,0.07148072,64263.0,64262.0,0.59812609]
[1724530299714,0.06283455,64263.0,64262.0,0.7166229]
[1724530300105,0.06283455,64263.0,64262.0,0.3558229]
[1724530300312,0.06283455,64263.0,64262.0,0.7166229]
[1724530300503,0.06283455,64263.0,64262.0,0.3558229]
[1724530300909,0.06283455,64263.0,64262.0,0.7166229]
[1724530301115,0.06283455,64263.0,64262.0,0.7163929]
[1724530301509,0.06283455,64263.0,64262.0,0.3555929]
[1724530301712,0.06283455,64263.0,64262.0,0.7163929]
[1724530302211,0.01623338,64263.0,64262.0,0.7163929]
[1724530302613,0.01623338,64263.0,64262.0,0.59789609]
[1724530302807,0.01623338,64263.0,64262.0,0.33127896]
[1724530303009,0.01623338,64263.0,64262.0,0.71639298]
[1724530303301,0.01623338,64263.0,64262.0,0.67262781]
[1724530303502,0.01623338,64263.0,64262.0,0.71639304]
[1724530303710,0.01623338,64263.0,64262.0,0.69694183]
[1724530304116,0.01623338,64263.0,64262.0,0.71639304]
[1724530304713,0.01623338,64263.0,64262.0,0.35559304]
[1724530304915,0.01623338,64263.0,64262.0,0.71639304]
[1724530306618,0.01623338,64263.0,64262.0,0.35559304]
[1724530307009,0.01623338,64263.0,64262.0,0.71639304]
[1724530308619,0.01623338,64263.0,64262.0,0.35559304]
[1724530309118,0.01623338,64263.0,64262.0,0.71639304]
[1724530309805,0.01623338,64263.0,64262.0,0.67262781]
[1724530310010,0.01623338,64263.0,64262.0,0.69694183]
[1724530310220,0.01623338,64263.0,64262.0,0.71639305]
[1724530311019,0.01623338,64263.0,64262.0,0.71639308]
[1724530313316,0.01623338,64263.0,64262.0,0.69694186]
[1724530313510,0.06283507,64263.0,64262.0,0.71639308]
[1724530314923,0.06283507,64263.0,64262.0,0.35559308]
[1724530315116,0.06283507,64263.0,64262.0,0.71639308]
[1724530315318,0.06283507,64263.0,64262.0,0.71662308]
[1724530319025,0.06283507,64263.0,64262.0,0.35582308]
[1724530319236,0.06283507,64263.0,64262.0,0.71662308]
[1724530323922,0.06283507,64263.0,64262.0,0.35582308]
[1724530324120,0.06283507,64263.0,64262.0,0.71662308]
[1724530324121,0.01623338,64263.0,64262.0,0.71662308]
[1724530324722,0.01623338,64263.0,64262.0,0.69717186]
[1724530324925,0.01623338,64263.0,64262.0,0.71662307]
[1724530328125,0.01623338,64263.0,64262.0,0.35582307]
[1724530328330,0.01623338,64263.0,64262.0,0.71662307]
[1724530328928,0.01623338,64263.0,64262.0,0.71662305]
[1724530331432,0.07837819,64263.0,64262.0,0.6728629]
[1724530331928,0.01623338,64263.0,64262.0,0.6923143]
[1724530332127,0.01623338,64263.0,64262.0,0.71662855]
[1724530332931,0.01623338,64263.0,64262.0,0.69717715]
[1724530333133,0.01623338,64263.0,64262.0,0.71662868]
[1724530333733,0.01623338,64263.0,64262.0,0.71662508]
[1724530334825,0.01623338,64263.0,64262.0,0.6728593]
[1724530335036,0.01623338,64263.0,64262.0,0.69231076]
[1724530335236,0.01623338,64263.0,64262.0,0.71662508]
[1724530337034,0.01623338,64263.0,64262.0,0.59812678]
[1724530337431,0.0714816,64263.0,64262.0,0.59812678]
[1724530338431,0.0714816,64263.0,64262.0,0.554361]
[1724530338626,0.0714816,64263.0,64262.0,0.59812678]
[1724530339333,0.0714816,64263.0,64262.0,0.59789678]
[1724530340034,0.01623338,64263.0,64262.0,0.71639439]
[1724530340339,0.06282301,64263.0,64262.0,0.71639439]
[1724530340832,0.01623338,64263.0,64262.0,0.71639439]
[1724530341733,0.06281854,64263.0,64262.0,0.71639439]
[1724530341934,0.01623338,64263.0,64262.0,0.71639439]
[1724530342132,0.01623338,64263.0,64262.0,0.74070861]
[1724530342325,0.01623338,64263.0,64262.0,0.71639429]
[1724530343232,0.06281842,64263.0,64262.0,0.71639429]
[1724530343636,0.06281842,64263.0,64262.0,0.7163949]
[1724530346647,0.06281842,64263.0,64262.0,0.60287494]
[1724530346832,0.06281842,64263.0,64262.0,0.82631494]
[1724530347343,0.06281842,64263.0,64262.0,0.71631494]
[1724530347536,0.06281842,64263.0,64262.0,0.82631494]
[1724530347942,0.01623338,64263.0,64262.0,0.82631494]
[1724530348340,0.01623338,64263.0,64262.0,0.80200063]
[1724530348642,0.01623338,64263.0,64262.0,0.82631882]
[1724530349235,0.01623338,64263.0,64262.0,0.52510782]
[1724530349432,0.96084338,64263.0,64262.0,0.04580638]
[1724530349643,0.98927927,64263.0,64262.0,0.04580638]
[1724530349840,0.98927927,64263.0,64262.0,0.02635497]
[1724530349841,0.66692877,64263.0,64262.0,0.02635497]
[1724530350241,0.69927927,64263.0,64262.0,0.02635497]
[1724530350635,0.12243927,64263.0,64262.0,0.02635497]
[1724530350845,0.20400338,64263.0,64262.0,0.02635497]
[1724530351843,0.20400338,64263.0,64262.0,0.00204]
[1724530352037,0.20400338,64263.0,64262.0,0.02635786]
[1724530352244,0.20400338,64263.0,64262.0,0.07299908]
[1724530353436,0.20400338,64263.0,64262.0,0.02635786]
[1724530353638,0.20400338,64263.0,64262.0,0.02658786]
[1724530354242,0.20400338,64263.0,64262.0,0.00227]
[1724530361359,0.20400338,64263.0,64262.0,0.02658785]
[1724530361751,0.20400338,64263.0,64259.0,0.04664122]
[1724530361752,0.077774,64260.0,64259.0,0.04664122]
[1724530362046,0.07778,64255.0,64253.0,0.04664122]
[1724530362245,0.0479,64254.0,64251.0,0.16008122]
[1724530362445,0.15643935,64252.0,64251.0,0.16008122]
[1724530362643,0.187783,64252.0,64251.0,0.11344]
[1724530362945,0.187823,64252.0,64251.0,0.11344]
[1724530363538,0.187823,64252.0,64251.0,0.11444]
[1724530364742,0.187823,64252.0,64251.0,0.1610141]
[1724530364948,0.187823,64252.0,64251.0,0.11444]
[1724530365247,0.23423861,64252.0,64251.0,0.16100751]
[1724530368860,0.187823,64252.0,64251.0,0.11444]
[1724530370559,0.187823,64252.0,64251.0,0.16099511]
[1724530373558,0.187823,64252.0,64251.0,0.11444]
[1724530373860,0.187823,64252.0,64251.0,0.13876132]
[1724530374261,0.187823,64252.0,64251.0,0.13876131]
[1724530375266,0.187823,64252.0,64251.0,0.11444]
[1724530378255,0.187823,64252.0,64251.0,0.16100524]
[1724530378459,0.187823,64252.0,64251.0,0.11444]
[1724530378460,0.71666127,64252.0,64251.0,0.11444]
[1724530378664,0.700943,64252.0,64251.0,0.11444]
[1724530380271,1.061743,64252.0,64251.0,0.11444]
[1724530383062,0.700943,64252.0,64251.0,0.11444]
[1724530383562,0.234023,64252.0,64251.0,0.11444]
[1724530388884,0.077823,64252.0,64251.0,0.11444]
[1724530389060,0.187823,64252.0,64251.0,0.11444]
[1724530389261,0.187823,64252.0,64251.0,0.16100524]
[1724530389464,0.187823,64252.0,64251.0,0.23878924]
[1724530390466,0.187823,64252.0,64251.0,0.192224]
[1724530391767,0.187823,64252.0,64251.0,0.192454]
[1724530393570,0.187823,64252.0,64251.0,0.2199771]
[1724530394171,0.187823,64252.0,64251.0,0.192454]
[1724530395171,0.187823,64252.0,64251.0,0.21677638]
[1724530395978,0.187823,64252.0,64251.0,0.13899238]
[1724530396175,0.187823,64252.0,64251.0,0.02555238]
[1724530396676,0.187823,64252.0,64251.0,0.00123]
[1724530396865,0.187823,64252.0,64251.0,0.04788445]
[1724530397377,0.233223,64252.0,64251.0,0.04788445]
[1724530399174,0.233223,64252.0,64251.0,0.00123]
[1724530400467,0.233223,64252.0,64251.0,0.02555304]
[1724530402279,0.3108725,64252.0,64251.0,0.02555304]
[1724530402580,0.3108725,64252.0,64251.0,0.00123]
[1724530402778,0.3108725,64252.0,64251.0,0.04789456]
[1724530402974,0.35162296,64252.0,64251.0,0.02555304]
[1724530403970,0.30622296,64252.0,64251.0,0.02555304]
[1724530404167,0.30622296,64252.0,64251.0,0.07395304]
[1724530405768,0.30622265,64252.0,64251.0,0.07395304]
[1724530405973,0.26534579,64252.0,64251.0,0.07395304]
[1724530406168,0.26534579,64252.0,64251.0,0.1206274]
[1724530406396,0.26534579,64252.0,64251.0,0.07395304]
[1724530409382,0.26534579,64252.0,64251.0,0.04963]
[1724530409574,0.26534579,64252.0,64251.0,0.07395252]
[1724530409774,0.26534579,64252.0,64251.0,0.04963]
[1724530410185,0.26534579,64252.0,64251.0,0.07395252]
[1724530411083,0.187823,64252.0,64251.0,0.07395252]
[1724530413076,0.26534579,64252.0,64251.0,0.07395252]
[1724530415889,0.21304456,64252.0,64251.0,0.07395252]
[1724530416089,0.21304456,64252.0,64251.0,0.02555252]
[1724530416288,0.29082756,64252.0,64251.0,0.02555252]
[1724530416484,0.29082756,64252.0,64251.0,0.02555374]
[1724530416791,0.29082756,64252.0,64251.0,0.02532374]
[1724530417393,0.29082756,64252.0,64251.0,0.001]
[1724530418092,0.29082756,64252.0,64251.0,0.02532416]
[1724530418488,0.29082756,64252.0,64251.0,0.001]
[1724530419187,0.29082772,64252.0,64251.0,0.02532416]
[1724530419394,0.29082772,64252.0,64251.0,0.001]
[1724530420680,1.15774772,64252.0,64251.0,0.001]
[1724530421289,1.15774772,64252.0,64247.0,0.0002]
[1724530421290,0.155576,64248.0,64247.0,0.0002]
[1724530421596,0.65159772,64248.0,64247.0,0.0002]
[1724530422185,0.65163772,64248.0,64247.0,0.0002]
[1724530422387,0.65163772,64248.0,64247.0,0.0052]
[1724530422887,0.65163772,64248.0,64247.0,0.0102]
[1724530423091,1.51859772,64248.0,64247.0,0.0102]
[1724530425192,1.61177712,64248.0,64247.0,0.0102]
[1724530425393,1.61178128,64248.0,64247.0,0.0102]
[1724530425981,0.077802,64237.0,64235.0,0.04668581]
[1724530426286,0.24972691,64236.0,64235.0,0.04668581]
[1724530426491,0.187803,64236.0,64235.0,0.02432874]
[1724530427988,0.188803,64236.0,64235.0,0.03832874]
[1724530428596,0.188803,64236.0,64235.0,0.05132874]
[1724530429495,0.189803,64236.0,64235.0,0.023]
[1724530431584,0.189803,64236.0,64235.0,0.02323]
[1724530435897,0.21732293,64236.0,64235.0,0.02323]
[1724530440304,0.35704984,64236.0,64235.0,0.02323]
[1724530440600,0.76216593,64236.0,64235.0,0.02323]
[1724530441504,0.077806,64233.0,64232.0,0.049]
[1724530441699,0.187806,64233.0,64232.0,0.049]
[1724530441903,0.654846,64233.0,64232.0,0.049]
[1724530442599,0.655846,64233.0,64232.0,0.063]
[1724530444295,0.656846,64233.0,64232.0,0.066]
[1724530444703,0.656846,64233.0,64232.0,0.058]
[1724530445004,0.655846,64233.0,64232.0,0.055]
[1724530445199,0.656846,64233.0,64232.0,0.058]
[1724530445606,0.189806,64233.0,64232.0,0.058]
[1724530449709,0.26721088,64233.0,64232.0,0.058]
[1724530450005,0.62801088,64233.0,64232.0,0.058]
[1724530451100,0.550606,64233.0,64232.0,0.058]